[Event "Niedersachsen-ch B 2024"]
[Site "Verden Aller"]
[Date "2024.01.04"]
[Round "1.19"]
[White "Knorr, Frank"]
[Black "Frese, Immo"]
[Result "0-1"]
[ECO "A17"]
[WhiteElo "1411"]
[BlackElo "1642"]
[Annotator "NA RC"]
[PlyCount "106"]
[EventDate "2024.01.01"]
[EventType "swiss"]
[EventCountry "GER"]
[SourceTitle "playchess.com"]
[Source "ChessBase"]
[SourceQuality "1"]
[TimeControl "40/5400+30:1800+30"]

1. c4 {[%emt 0:00:04]} Nf6 {[%emt 0:00:08]} 2. Nc3 {[%emt 0:00:06]} e6 {[%emt 0:00:12]} 3. g3 {[%emt 0:00:24]} d5 {[%emt 0:00:30]} 4. cxd5 {[%emt 0:00:33]} exd5 {[%emt 0:00:11]} 5. e3 {[%emt 0:00:35]} g6 {[%emt 0:02:39]} 6. Bg2 {[%emt 0:00:41]} Bg7 {[%emt 0:01:17]} 7. Nge2 {[%emt 0:00:11]} O-O {[%emt 0:01:10]} 8. O-O {[%emt 0:00:31]} b6 {[%emt 0:06:58]} 9. a4 {[%emt 0:02:23]} Bb7 {[%emt 0:02:18]} 10. a5 {[%emt 0:06:17]} c5 {[%emt 0:04:34]} 11. axb6 {[%emt 0:05:04]} axb6 {[%emt 0:04:52]} 12. Rxa8 {[%emt 0:00:13]} Bxa8 {[%emt 0:00:03]} 13. Nf4 {[%emt 0:01:30]} Na6 {[%emt 0:06:49]} 14. Nd3 {[%emt 0:09:29]} Re8 {[%emt 0:05:32]} 15. Qa4 {[%emt 0:01:56]} Nc7 {[%emt 0:06:26]} 16. Nf4 {[%emt 0:01:55]} Qd6 {[%emt 0:07:54]} 17. Qc2 {[%emt 0:19:54]} d4 {[%emt 0:04:02]} 18. Bxa8 {[%emt 0:00:30]} Rxa8 {[%emt 0:00:25]} 19. Ne4 {[%emt 0:00:16]} Nxe4 {[%emt 0:00:57]} 20. Qxe4 {[%emt 0:00:15]} Ra2 {[%emt 0:05:57]} 21. Qb1 {[%emt 0:04:53]} Ra5 {[%emt 0:03:42]} 22. Nd3 {[%emt 0:03:20]} c4 {[%emt 0:04:53]} 23. b4 {[%emt 0:03:46]} Rb5 {[%emt 0:03:00]} 24. Nf4 {[%emt 0:02:42]} Qxb4 {[%emt 0:02:06]} 25. Qxb4 {[%emt 0:04:48]} Rxb4 {[%emt 0:00:02]} 26. Ba3 {[%emt 0:00:11]} Ra4 {[%emt 0:00:49]} 27. Be7 {[%emt 0:02:56]} dxe3 {[%emt 0:06:03]} 28. fxe3 {[%emt 0:00:30]} Ra1 {[%emt 0:02:08]} 29. Bd8 {[%emt 0:01:04]} Rxf1+ {[%emt 0:01:22]} 30. Kxf1 {[%emt 0:00:08]} Be5 {[%emt 0:00:16]} 31. Bxc7 {[%emt 0:02:17]} Bxc7 {[%emt 0:00:15]} 32. Nd5 {[%emt 0:00:08]} Bd8 {[%emt 0:00:31]} 33. Ke1 {[%emt 0:00:10]} f5 {[%emt 0:03:13]} 34. Kd1 {[%emt 0:00:49]} Kf7 {[%emt 0:00:44]} 35. Kc2 {[%emt 0:01:14]} Ke6 {[%emt 0:01:08]} 36. Nf4+ {[%emt 0:00:26]} Kd6 {[%emt 0:01:28]} 37. Kc3 {[%emt 0:00:17]} b5 {[%emt 0:01:00]} 38. Kb4 {[%emt 0:06:13]} Kc6 {[%emt 0:00:21]} 39. Ne2 {[%emt 0:00:45]} Be7+ {[%emt 0:02:31]} 40. Kc3 {[%emt 0:00:44]} Kc5 {[%emt 0:01:51]} 41. Kc2 {[%emt 0:37:31]} Bf6 {[%emt 0:34:10]} 42. Nc1 {[%emt 0:05:45]} b4 {[%emt 0:02:17]} 43. d3 {[%emt 0:00:15]} b3+ {[%emt 0:01:51]} 44. Kb1 {[%emt 0:01:03]} Kb4 {[%emt 0:00:00]} 45. dxc4 {[%emt 0:00:00]} Kxc4 {[%emt 0:00:00]} 46. Ne2 {[%emt 0:00:00]} Bg5 {[%emt 0:00:00]} 47. Nf4 {[%emt 0:00:00]} Bxf4 {[%emt 0:00:00]} 48. exf4 {[%emt 0:00:00]} Kd3 {[%emt 0:00:00]} 49. Kb2 {[%emt 0:00:00]} Ke3 {[%emt 0:00:00]} 50. Kxb3 {[%emt 0:00:00]} Kf3 {[%emt 0:00:00]} 51. Kc3 {[%emt 0:00:00]} Kg2 {[%emt 0:00:00]} 52. Kd3 {[%emt 0:00:00]} Kxh2 {[%emt 0:00:00]} 53. Ke2 {[%emt 0:00:00]} Kxg3 {[%emt 0:00:00]} 0-1

[Event "Niedersachsen-ch B 2024"]
[Site "Verden Aller"]
[Date "2024.01.04"]
[Round "1.20"]
[White "Wildner, Jens Martin"]
[Black "Junge, Julia Marie"]
[Result "0-1"]
[ECO "D41"]
[WhiteElo "1634"]
[BlackElo "1401"]
[Annotator "NA RC"]
[PlyCount "37"]
[EventDate "2024.01.01"]
[EventType "swiss"]
[EventCountry "GER"]
[SourceTitle "playchess.com"]
[Source "ChessBase"]
[SourceQuality "1"]
[TimeControl "40/5400+30:1800+30"]

1. d4 {[%emt 0:00:03]} e6 {[%emt 0:00:19]} 2. c4 {[%emt 0:00:23]} d5 {[%emt 0:00:34]} 3. Nc3 {[%emt 0:00:06]} Nf6 {[%emt 0:00:07]} 4. cxd5 {[%emt 0:00:07]} Nxd5 {[%emt 0:00:45]} 5. e4 {[%emt 0:00:33]} Nxc3 {[%emt 0:00:36]} 6. bxc3 {[%emt 0:00:05]} c5 {[%emt 0:00:54]} 7. Nf3 {[%emt 0:00:52]} Nc6 {[%emt 0:00:37]} 8. Be2 {[%emt 0:10:01]} cxd4 {[%emt 0:01:39]} 9. cxd4 {[%emt 0:00:06]} Bb4+ {[%emt 0:00:20]} 10. Bd2 {[%emt 0:00:23]} Qa5 {[%emt 0:00:06]} 11. Bxb4 {[%emt 0:03:24]} Qxb4+ {[%emt 0:00:12]} 12. Qd2 {[%emt 0:00:14]} Qxd2+ {[%emt 0:04:07]} 13. Kxd2 {[%emt 0:00:08]} O-O {[%emt 0:01:03]} 14. Rac1 {[%emt 0:02:29]} Rd8 {[%emt 0:00:40]} 15. Ke3 {[%emt 0:00:07]} Bd7 {[%emt 0:02:30]} 16. Rc5 {[%emt 0:03:28]} b6 {[%emt 0:02:50]} 17. Rc3 {[%emt 0:00:19]} f5 {[%emt 0:01:23]} 18. e5 {[%emt 0:12:01]} Nb4 {[%emt 0:01:28]} 19. Ra3 {[%emt 0:02:14]} 0-1

[Event "Niedersachsen-ch B 2024"]
[Site "Verden Aller"]
[Date "2024.01.04"]
[Round "1.22"]
[White "Richter, Silas"]
[Black "Schoenfelder, Dennis Yoel"]
[Result "1-0"]
[ECO "B11"]
[WhiteElo "1614"]
[BlackElo "1370"]
[Annotator "NA RC"]
[PlyCount "69"]
[EventDate "2024.01.01"]
[EventType "swiss"]
[EventCountry "GER"]
[SourceTitle "playchess.com"]
[Source "ChessBase"]
[SourceQuality "1"]
[TimeControl "40/5400+30:1800+30"]

1. e4 {[%emt 0:00:01]} c6 {[%emt 0:00:06]} 2. Nf3 {[%emt 0:00:04]} d5 {[%emt 0:00:07]} 3. Nc3 {[%emt 0:00:03]} dxe4 {[%emt 0:00:13]} 4. Nxe4 {[%emt 0:00:02]} Nf6 {[%emt 0:00:10]} 5. Qe2 {[%emt 0:00:03]} Nxe4 {[%emt 0:00:07]} 6. Qxe4 {[%emt 0:00:04]} Nd7 {[%emt 0:00:20]} 7. Bc4 {[%emt 0:00:03]} Nf6 {[%emt 0:00:07]} 8. Ne5 {[%emt 0:00:05]} e6 {[%emt 0:00:05]} 9. Qe2 {[%emt 0:00:02]} b5 {[%emt 0:01:20]} 10. Bb3 {[%emt 0:08:40]} Qc7 {[%emt 0:01:55]} 11. d4 {[%emt 0:00:16]} Bd6 {[%emt 0:02:08]} 12. Bf4 {[%emt 0:00:12]} O-O {[%emt 0:01:19]} 13. O-O-O {[%emt 0:01:11]} a5 {[%emt 0:06:23]} 14. a4 {[%emt 0:01:39]} bxa4 {[%emt 0:07:08]} 15. Bxa4 {[%emt 0:00:10]} Bb7 {[%emt 0:00:46]} 16. h4 {[%emt 0:01:21]} Nd5 {[%emt 0:01:37]} 17. Bg3 {[%emt 0:23:05]} Nb6 {[%emt 0:11:31]} 18. b3 {[%emt 0:00:11]} Nxa4 {[%emt 0:04:36]} 19. bxa4 {[%emt 0:00:02]} Rfd8 {[%emt 0:08:16]} 20. Qe3 {[%emt 0:02:21]} Qe7 {[%emt 0:05:43]} 21. h5 {[%emt 0:02:12]} c5 {[%emt 0:03:35]} 22. Nc4 {[%emt 0:12:45]} Bxg3 {[%emt 0:02:43]} 23. Qxg3 {[%emt 0:00:22]} cxd4 {[%emt 0:01:10]} 24. h6 {[%emt 0:00:05]} Qf6 {[%emt 0:01:05]} 25. Rh4 {[%emt 0:02:32]} g6 {[%emt 0:02:25]} 26. Rf4 {[%emt 0:00:41]} Qe7 {[%emt 0:01:21]} 27. Rfxd4 {[%emt 0:00:43]} Rxd4 {[%emt 0:04:56]} 28. Rxd4 {[%emt 0:01:28]} Qc5 {[%emt 0:01:38]} 29. Qe3 {[%emt 0:04:51]} Bd5 {[%emt 0:02:21]} 30. Ne5 {[%emt 0:10:45]} Qc7 {[%emt 0:05:13]} 31. Ng4 {[%emt 0:04:45]} Rc8 {[%emt 0:03:46]} 32. Nf6+ {[%emt 0:00:43]} Kh8 {[%emt 0:00:08]} 33. Rd2 {[%emt 0:01:48]} Qh2 {[%emt 0:02:48]} 34. Nxd5 {[%emt 0:00:38]} exd5 {[%emt 0:00:20]} 35. Qd4+ {[%emt 0:00:06]} 1-0

[Event "Niedersachsen-ch B 2024"]
[Site "Verden Aller"]
[Date "2024.01.04"]
[Round "1.24"]
[White "Ristedt, Mathis"]
[Black "Lieb, Max"]
[Result "0-1"]
[ECO "D47"]
[WhiteElo "1601"]
[BlackElo "1365"]
[Annotator "NA RC"]
[PlyCount "64"]
[EventDate "2024.01.01"]
[EventType "swiss"]
[EventCountry "GER"]
[SourceTitle "playchess.com"]
[Source "ChessBase"]
[SourceQuality "1"]
[TimeControl "40/5400+30:1800+30"]

1. d4 {[%emt 0:00:03]} d5 {[%emt 0:00:07]} 2. c4 {[%emt 0:00:05]} c6 {[%emt 0:00:06]} 3. Nf3 {[%emt 0:00:09]} Nf6 {[%emt 0:00:07]} 4. e3 {[%emt 0:00:08]} e6 {[%emt 0:00:11]} 5. Nc3 {[%emt 0:00:34]} Nbd7 {[%emt 0:00:29]} 6. Bd3 {[%emt 0:01:39]} dxc4 {[%emt 0:00:08]} 7. Bxc4 {[%emt 0:00:08]} b5 {[%emt 0:00:08]} 8. Be2 {[%emt 0:06:30]} Bb7 {[%emt 0:00:07]} 9. O-O {[%emt 0:01:45]} a6 {[%emt 0:00:19]} 10. Re1 {[%emt 0:11:46]} c5 {[%emt 0:00:16]} 11. dxc5 {[%emt 0:01:24]} Bxc5 {[%emt 0:00:19]} 12. Nd4 {[%emt 0:01:27]} O-O {[%emt 0:01:16]} 13. Bf3 {[%emt 0:06:24]} Bxd4 {[%emt 0:00:16]} 14. Bxb7 {[%emt 0:05:11]} Bxc3 {[%emt 0:00:10]} 15. bxc3 {[%emt 0:00:38]} Ra7 {[%emt 0:00:44]} 16. Bf3 {[%emt 0:01:53]} Ne5 {[%emt 0:01:34]} 17. Be2 {[%emt 0:16:04]} Rc7 {[%emt 0:02:23]} 18. Qd4 {[%emt 0:05:20]} Nc4 {[%emt 0:04:58]} 19. Rd1 {[%emt 0:06:03]} Rd7 {[%emt 0:00:59]} 20. Bxc4 {[%emt 0:08:57]} bxc4 {[%emt 0:00:41]} 21. Ba3 {[%emt 0:03:01]} Rxd4 {[%emt 0:02:07]} 22. Rxd4 {[%emt 0:00:16]} Qa5 {[%emt 0:02:23]} 23. Bb4 {[%emt 0:01:02]} Qc7 {[%emt 0:02:48]} 24. Bd6 {[%emt 0:02:13]} Qc8 {[%emt 0:01:35]} 25. Bxf8 {[%emt 0:00:57]} Kxf8 {[%emt 0:00:09]} 26. Rad1 {[%emt 0:01:35]} Ke7 {[%emt 0:00:26]} 27. f3 {[%emt 0:03:47]} Nd5 {[%emt 0:00:57]} 28. Kf2 {[%emt 0:01:54]} Qc7 {[%emt 0:06:49]} 29. Rh4 {[%emt 0:01:45]} h6 {[%emt 0:03:25]} 30. Rg4 {[%emt 0:04:13]} Qb6 {[%emt 0:00:46]} 31. Rgd4 {[%emt 0:01:29]} Qb2+ {[%emt 0:00:40]} 32. R1d2 {[%emt 0:01:30]} Qxc3 {[%emt 0:01:12]} 0-1

[Event "Niedersachsen-ch B 2024"]
[Site "Verden Aller"]
[Date "2024.01.04"]
[Round "1.25"]
[White "Fize, Aleksandrs"]
[Black "Grabowski, Petra"]
[Result "0-1"]
[ECO "D00"]
[WhiteElo "1307"]
[BlackElo "1600"]
[Annotator "NA RC"]
[PlyCount "98"]
[EventDate "2024.01.01"]
[EventType "swiss"]
[EventCountry "GER"]
[SourceTitle "playchess.com"]
[Source "ChessBase"]
[SourceQuality "1"]
[TimeControl "40/5400+30:1800+30"]

1. d4 {[%emt 0:00:02]} Nf6 {[%emt 0:00:05]} 2. Nc3 {[%emt 0:00:06]} d5 {[%emt 0:00:29]} 3. Bf4 {[%emt 0:00:07]} a6 {[%emt 0:01:23]} 4. e3 {[%emt 0:00:27]} e6 {[%emt 0:00:56]} 5. Nf3 {[%emt 0:00:13]} c5 {[%emt 0:00:50]} 6. dxc5 {[%emt 0:00:21]} Bxc5 {[%emt 0:01:17]} 7. Bd3 {[%emt 0:00:11]} Bb4 {[%emt 0:04:08]} 8. Qd2 {[%emt 0:03:27]} O-O {[%emt 0:07:35]} 9. a3 {[%emt 0:00:05]} Ne4 {[%emt 0:02:27]} 10. Bxe4 {[%emt 0:00:55]} dxe4 {[%emt 0:02:02]} 11. Nd4 {[%emt 0:01:09]} Qa5 {[%emt 0:04:24]} 12. Nb3 {[%emt 0:05:26]} Bxc3 {[%emt 0:00:06]} 13. Nxa5 {[%emt 0:00:25]} Bxd2+ {[%emt 0:00:06]} 14. Kxd2 {[%emt 0:00:11]} Nd7 {[%emt 0:28:41]} 15. Nc4 {[%emt 0:01:14]} b5 {[%emt 0:04:18]} 16. Nd6 {[%emt 0:00:23]} Rd8 {[%emt 0:00:07]} 17. Ke2 {[%emt 0:01:03]} Nf6 {[%emt 0:03:44]} 18. Rhd1 {[%emt 0:04:32]} Nd5 {[%emt 0:05:25]} 19. Bg3 {[%emt 0:00:27]} f5 {[%emt 0:05:34]} 20. f3 {[%emt 0:02:21]} exf3+ {[%emt 0:01:38]} 21. gxf3 {[%emt 0:00:08]} g5 {[%emt 0:08:49]} 22. Nxc8 {[%emt 0:01:53]} Raxc8 {[%emt 0:01:20]} 23. Rac1 {[%emt 0:00:46]} Rd7 {[%emt 0:04:51]} 24. h4 {[%emt 0:02:08]} f4 {[%emt 0:00:59]} 25. exf4 {[%emt 0:00:59]} gxh4 {[%emt 0:01:17]} 26. Bh2 {[%emt 0:00:52]} Rf7 {[%emt 0:02:20]} 27. Rg1+ {[%emt 0:00:33]} Kh8 {[%emt 0:02:02]} 28. Rg4 {[%emt 0:00:20]} h3 {[%emt 0:01:11]} 29. c3 {[%emt 0:01:33]} Rg8 {[%emt 0:02:12]} 30. Rcg1 {[%emt 0:00:49]} Rxg4 {[%emt 0:00:02]} 31. Rxg4 {[%emt 0:00:24]} Rg7 {[%emt 0:00:01]} 32. Kd3 {[%emt 0:00:38]} Rd7 {[%emt 0:01:43]} 33. Ke2 {[%emt 0:01:16]} Rg7 {[%emt 0:00:34]} 34. Rxg7 {[%emt 0:05:12]} Kxg7 {[%emt 0:00:01]} 35. Kd3 {[%emt 0:00:29]} Kf6 {[%emt 0:00:28]} 36. Ke4 {[%emt 0:00:55]} Nb6 {[%emt 0:00:33]} 37. b3 {[%emt 0:00:25]} Nd5 {[%emt 0:00:21]} 38. c4 {[%emt 0:01:38]} bxc4 {[%emt 0:00:35]} 39. bxc4 {[%emt 0:00:17]} Nc3+ {[%emt 0:00:55]} 40. Kd3 {[%emt 0:01:07]} Nd1 {[%emt 0:02:03]} 41. c5 {[%emt 0:30:51]} Ke7 {[%emt 0:30:53]} 42. Kd4 {[%emt 0:00:14]} Kd7 {[%emt 0:00:12]} 43. Ke5 {[%emt 0:00:37]} Ne3 {[%emt 0:00:46]} 44. c6+ {[%emt 0:00:45]} Kxc6 {[%emt 0:00:20]} 45. Kxe6 {[%emt 0:00:10]} Nf1 {[%emt 0:00:14]} 46. Bg1 {[%emt 0:00:16]} h2 {[%emt 0:00:29]} 47. Bxh2 {[%emt 0:00:06]} Nxh2 {[%emt 0:00:01]} 48. f5 {[%emt 0:00:32]} Nxf3 {[%emt 0:01:08]} 49. f6 {[%emt 0:00:51]} Ng5+ {[%emt 0:00:00]} 0-1

[Event "Niedersachsen-ch B 2024"]
[Site "Verden Aller"]
[Date "2024.01.04"]
[Round "1.26"]
[White "Homann, Christoph"]
[Black "Rinke, Alexander"]
[Result "1-0"]
[ECO "D53"]
[WhiteElo "1597"]
[BlackElo "1296"]
[Annotator "NA RC"]
[PlyCount "103"]
[EventDate "2024.01.01"]
[EventType "swiss"]
[EventCountry "GER"]
[SourceTitle "playchess.com"]
[Source "ChessBase"]
[SourceQuality "1"]
[TimeControl "40/5400+30:1800+30"]

1. d4 {[%emt 0:00:04]} d5 {[%emt 0:00:13]} 2. c4 {[%emt 0:00:01]} e6 {[%emt 0:00:47]} 3. Nc3 {[%emt 0:00:06]} Nf6 {[%emt 0:00:06]} 4. Bg5 {[%emt 0:00:10]} Be7 {[%emt 0:00:22]} 5. cxd5 {[%emt 0:00:26]} Nxd5 {[%emt 0:00:51]} 6. Bxe7 {[%emt 0:00:35]} Qxe7 {[%emt 0:00:10]} 7. e4 {[%emt 0:01:05]} Nf6 {[%emt 0:00:26]} 8. Nf3 {[%emt 0:01:58]} O-O {[%emt 0:00:18]} 9. Bc4 {[%emt 0:01:53]} Nbd7 {[%emt 0:01:03]} 10. O-O {[%emt 0:05:23]} b6 {[%emt 0:08:29]} 11. e5 {[%emt 0:03:55]} Ne8 {[%emt 0:03:32]} 12. Re1 {[%emt 0:03:37]} c6 {[%emt 0:02:16]} 13. Rc1 {[%emt 0:01:40]} Bb7 {[%emt 0:05:00]} 14. Ne4 {[%emt 0:02:08]} Rc8 {[%emt 0:04:04]} 15. Qd3 {[%emt 0:02:32]} c5 {[%emt 0:03:32]} 16. Neg5 {[%emt 0:02:48]} g6 {[%emt 0:01:48]} 17. d5 {[%emt 0:00:41]} exd5 {[%emt 0:03:10]} 18. Bxd5 {[%emt 0:00:32]} Bxd5 {[%emt 0:02:53]} 19. Qxd5 {[%emt 0:00:04]} h6 {[%emt 0:03:19]} 20. e6 {[%emt 0:11:03]} Nc7 {[%emt 0:05:03]} 21. Qxd7 {[%emt 0:03:09]} Qxd7 {[%emt 0:00:23]} 22. exd7 {[%emt 0:00:02]} Rcd8 {[%emt 0:00:05]} 23. Ne4 {[%emt 0:00:34]} f5 {[%emt 0:00:21]} 24. Nc3 {[%emt 0:01:27]} Rxd7 {[%emt 0:00:19]} 25. Rcd1 {[%emt 0:00:56]} Rdf7 {[%emt 0:00:40]} 26. Ne5 {[%emt 0:00:30]} Rg7 {[%emt 0:01:22]} 27. Rd6 {[%emt 0:02:01]} Kh7 {[%emt 0:01:02]} 28. Red1 {[%emt 0:01:24]} Re8 {[%emt 0:03:03]} 29. Nf3 {[%emt 0:03:01]} Rge7 {[%emt 0:02:09]} 30. h4 {[%emt 0:03:03]} Ne6 {[%emt 0:01:27]} 31. Rd7 {[%emt 0:00:33]} c4 {[%emt 0:01:50]} 32. Ne5 {[%emt 0:01:07]} Nc5 {[%emt 0:02:46]} 33. Rxe7+ {[%emt 0:00:34]} Rxe7 {[%emt 0:00:17]} 34. Nxc4 {[%emt 0:00:22]} Ne4 {[%emt 0:00:35]} 35. Nxe4 {[%emt 0:04:49]} Rxe4 {[%emt 0:01:29]} 36. b3 {[%emt 0:05:29]} Rxh4 {[%emt 0:00:44]} 37. Rd7+ {[%emt 0:00:21]} Kg8 {[%emt 0:00:10]} 38. Rxa7 {[%emt 0:00:10]} b5 {[%emt 0:00:18]} 39. Ne5 {[%emt 0:00:23]} g5 {[%emt 0:00:23]} 40. Rb7 {[%emt 0:01:27]} Rb4 {[%emt 0:00:18]} 41. Kf1 {[%emt 0:32:26]} h5 {[%emt 0:30:33]} 42. Nc6 {[%emt 0:00:17]} Rf4 {[%emt 0:00:22]} 43. Rxb5 {[%emt 0:00:18]} g4 {[%emt 0:00:17]} 44. Ne7+ {[%emt 0:00:22]} Kg7 {[%emt 0:00:40]} 45. Nxf5+ {[%emt 0:00:06]} Kf6 {[%emt 0:00:32]} 46. Ng3 {[%emt 0:00:32]} Kg6 {[%emt 0:00:26]} 47. Nxh5 {[%emt 0:00:23]} Rd4 {[%emt 0:00:21]} 48. Ng3 {[%emt 0:00:22]} Rd2 {[%emt 0:00:12]} 49. a4 {[%emt 0:00:12]} Rd3 {[%emt 0:00:39]} 50. Ke2 {[%emt 0:00:36]} Rc3 {[%emt 0:00:16]} 51. a5 {[%emt 0:00:23]} Kf6 {[%emt 0:00:19]} 52. Ne4+ {[%emt 0:00:44]} 1-0

[Event "Niedersachsen-ch B 2024"]
[Site "Verden Aller"]
[Date "2024.01.04"]
[Round "1.27"]
[White "Steven, Matthias"]
[Black "Silber, Stefanie"]
[Result "0-1"]
[ECO "B08"]
[WhiteElo "1284"]
[BlackElo "1581"]
[Annotator "NA RC"]
[PlyCount "136"]
[EventDate "2024.01.01"]
[EventType "swiss"]
[EventCountry "GER"]
[SourceTitle "playchess.com"]
[Source "ChessBase"]
[SourceQuality "1"]
[TimeControl "40/5400+30:1800+30"]

1. e4 {[%emt 0:00:05]} d6 {[%emt 0:00:11]} 2. d4 {[%emt 0:00:45]} g6 {[%emt 0:00:08]} 3. Nf3 {[%emt 0:04:45]} Bg7 {[%emt 0:00:26]} 4. Nc3 {[%emt 0:04:07]} Nf6 {[%emt 0:01:41]} 5. Bf4 {[%emt 0:03:00]} Nbd7 {[%emt 0:03:06]} 6. Bc4 {[%emt 0:01:55]} O-O {[%emt 0:02:36]} 7. Qd2 {[%emt 0:09:07]} c6 {[%emt 0:03:00]} 8. Bb3 {[%emt 0:02:51]} b5 {[%emt 0:00:26]} 9. e5 {[%emt 0:06:42]} dxe5 {[%emt 0:08:34]} 10. Nxe5 {[%emt 0:02:00]} Qb6 {[%emt 1:15:22]} 11. Ne2 {[%emt 0:07:07]} Nxe5 {[%emt 0:00:30]} 12. Bxe5 {[%emt 0:02:35]} Bb7 {[%emt 0:00:00]} 13. f3 {[%emt 0:08:00]} Rad8 {[%emt 0:00:00]} 14. c3 {[%emt 0:13:26]} Nd5 {[%emt 0:00:00]} 15. Bxg7 {[%emt 0:01:56]} Kxg7 {[%emt 0:00:00]} 16. O-O-O {[%emt 0:01:24]} c5 {[%emt 0:00:00]} 17. Rhe1 {[%emt 0:03:51]} c4 {[%emt 0:00:00]} 18. Bc2 {[%emt 0:00:31]} Qa5 {[%emt 0:00:00]} 19. a3 {[%emt 0:04:27]} Qb6 {[%emt 0:00:00]} 20. Nf4 {[%emt 0:02:14]} Qd6 {[%emt 0:00:00]} 21. Nxd5 {[%emt 0:01:16]} Bxd5 {[%emt 0:00:00]} 22. f4 {[%emt 0:00:31]} a5 {[%emt 0:00:00]} 23. g3 {[%emt 0:03:25]} Bf3 {[%emt 0:00:00]} 24. Qe3 {[%emt 0:02:56]} Bxd1 {[%emt 0:00:00]} 25. Bxd1 {[%emt 0:00:06]} Rfe8 {[%emt 0:00:00]} 26. Qe5+ {[%emt 0:01:07]} Qxe5 {[%emt 0:00:00]} 27. fxe5 {[%emt 0:00:40]} b4 {[%emt 0:00:00]} 28. axb4 {[%emt 0:01:21]} axb4 {[%emt 0:00:10]} 29. Be2 {[%emt 0:00:37]} bxc3 {[%emt 0:01:14]} 30. bxc3 {[%emt 0:00:09]} Rc8 {[%emt 0:00:43]} 31. Kc2 {[%emt 0:01:25]} Rc7 {[%emt 0:00:45]} 32. Rb1 {[%emt 0:01:50]} f6 {[%emt 0:03:42]} 33. e6 {[%emt 0:00:38]} f5 {[%emt 0:00:17]} 34. Rb4 {[%emt 0:00:39]} Rec8 {[%emt 0:00:08]} 35. Kd2 {[%emt 0:00:39]} Kf6 {[%emt 0:00:34]} 36. d5 {[%emt 0:00:19]} Ke5 {[%emt 0:00:33]} 37. Bf3 {[%emt 0:00:06]} Ra7 {[%emt 0:00:43]} 38. Rb2 {[%emt 0:00:56]} Ra1 {[%emt 0:00:33]} 39. Ke3 {[%emt 0:04:56]} Rc1 {[%emt 0:01:20]} 40. Kd2 {[%emt 0:00:14]} Rg1 {[%emt 0:02:34]} 41. Rb4 {[%emt 0:31:45]} g5 {[%emt 0:01:39]} 42. Rb5 {[%emt 0:00:00]} g4 {[%emt 0:04:04]} 43. Be2 {[%emt 0:00:00]} Rg2 {[%emt 0:01:28]} 44. d6+ {[%emt 0:00:00]} Kxe6 {[%emt 0:05:16]} 45. dxe7 {[%emt 0:00:00]} Ra8 {[%emt 0:02:19]} 46. Ke3 {[%emt 0:00:00]} Kf6 {[%emt 0:06:15]} 47. Bxc4 {[%emt 0:00:00]} Re8 {[%emt 0:00:14]} 48. Rb6+ {[%emt 0:00:00]} Kxe7 {[%emt 0:02:05]} 49. Re6+ {[%emt 0:00:00]} Kd7 {[%emt 0:00:26]} 50. Rxe8 {[%emt 0:00:00]} Kxe8 {[%emt 0:00:06]} 51. Bd3 {[%emt 0:00:00]} Ke7 {[%emt 0:01:08]} 52. Bxf5 {[%emt 0:00:00]} h5 {[%emt 0:00:40]} 53. Bg6 {[%emt 0:00:00]} Rxh2 {[%emt 0:00:42]} 54. Kf4 {[%emt 0:00:00]} Kf6 {[%emt 0:00:40]} 55. Be8 {[%emt 0:00:00]} Rf2+ {[%emt 0:01:38]} 56. Ke3 {[%emt 0:00:00]} Rf3+ {[%emt 0:00:28]} 57. Ke2 {[%emt 0:00:00]} Kg5 {[%emt 0:00:18]} 58. c4 {[%emt 0:00:00]} Rxg3 {[%emt 0:00:16]} 59. c5 {[%emt 0:00:00]} Rc3 {[%emt 0:00:37]} 60. c6 {[%emt 0:00:00]} g3 {[%emt 0:00:40]} 61. Bd7 {[%emt 0:00:00]} Kf4 {[%emt 0:00:38]} 62. c7 {[%emt 0:00:00]} Rxc7 {[%emt 0:00:29]} 63. Bh3 {[%emt 0:00:00]} Rc2+ {[%emt 0:00:45]} 64. Kf1 {[%emt 0:16:07]} Kf3 {[%emt 0:00:29]} 65. Kg1 {[%emt 0:00:00]} Rc1+ {[%emt 0:00:35]} 66. Bf1 {[%emt 0:00:00]} g2 {[%emt 0:00:40]} 67. Kh2 {[%emt 0:00:00]} Rxf1 {[%emt 0:00:17]} 68. Kh3 {[%emt 0:00:00]} Rh1# {[%emt 0:00:46]} 0-1

[Event "Niedersachsen-ch B 2024"]
[Site "Verden Aller"]
[Date "2024.01.04"]
[Round "1.29"]
[White "Sanchez Tapia, Luis G."]
[Black "Heckl, Philipp"]
[Result "1-0"]
[ECO "A80"]
[WhiteElo "1576"]
[BlackElo "1580"]
[Annotator "NA RC"]
[PlyCount "61"]
[EventDate "2024.01.01"]
[EventType "swiss"]
[EventCountry "GER"]
[SourceTitle "playchess.com"]
[Source "ChessBase"]
[SourceQuality "1"]
[TimeControl "40/5400+30:1800+30"]

1. d4 {[%emt 0:01:08]} f5 {[%emt 0:01:23]} 2. Bg5 {[%emt 0:00:21]} Nf6 {[%emt 0:04:31]} 3. e3 {[%emt 0:02:56]} e6 {[%emt 0:02:17]} 4. Nf3 {[%emt 0:02:16]} Be7 {[%emt 0:04:22]} 5. Nbd2 {[%emt 0:00:26]} O-O {[%emt 0:05:26]} 6. Bd3 {[%emt 0:02:45]} b6 {[%emt 0:06:06]} 7. Qe2 {[%emt 0:01:03]} Bb7 {[%emt 0:00:55]} 8. h3 {[%emt 0:05:58]} Ne4 {[%emt 0:07:24]} 9. Bxe7 {[%emt 0:00:23]} Qxe7 {[%emt 0:00:03]} 10. O-O-O {[%emt 0:17:47]} a5 {[%emt 0:01:22]} 11. Rdg1 {[%emt 0:00:34]} a4 {[%emt 0:02:06]} 12. a3 {[%emt 0:01:19]} d6 {[%emt 0:12:39]} 13. Rh2 {[%emt 0:03:35]} Nd7 {[%emt 0:04:14]} 14. g4 {[%emt 0:01:25]} Kh8 {[%emt 0:00:47]} 15. gxf5 {[%emt 0:07:28]} exf5 {[%emt 0:01:01]} 16. h4 {[%emt 0:00:36]} Ndf6 {[%emt 0:04:17]} 17. h5 {[%emt 0:06:10]} Qf7 {[%emt 0:07:46]} 18. Nh4 {[%emt 0:16:52]} Rfe8 {[%emt 0:13:21]} 19. Nxf5 {[%emt 0:03:30]} Nxd2 {[%emt 0:03:23]} 20. Kxd2 {[%emt 0:05:08]} Ne4+ {[%emt 0:00:47]} 21. Bxe4 {[%emt 0:00:27]} Bxe4 {[%emt 0:01:24]} 22. Nxg7 {[%emt 0:01:31]} Rf8 {[%emt 0:05:52]} 23. Qg4 {[%emt 0:03:16]} Bf3 {[%emt 0:02:03]} 24. Qe6 {[%emt 0:01:41]} Bxh5 {[%emt 0:02:15]} 25. Qh6 {[%emt 0:02:13]} Ra5 {[%emt 0:01:01]} 26. Nxh5 {[%emt 0:01:18]} Rf5 {[%emt 0:01:44]} 27. Nf4 {[%emt 0:02:10]} Rf6 {[%emt 0:01:13]} 28. Ng6+ {[%emt 0:02:43]} Rxg6 {[%emt 0:00:21]} 29. Rxg6 {[%emt 0:00:07]} c5 {[%emt 0:00:54]} 30. Rhg2 {[%emt 0:02:48]} Qf5 {[%emt 0:01:13]} 31. Qg7# {[%emt 0:00:42]} 1-0